bitfinex/quotes_BTCUSD_20250607
["timestamp","ask_amount","ask_price","bid_price","bid_amount"]
[1749301371221,5.2391865,105520.0,105510.0,0.2918]
[1749301371431,5.24584288,105520.0,105510.0,0.2918]
[1749301372308,5.24584292,105520.0,105510.0,0.2918]
[1749301372723,5.24584301,105520.0,105510.0,0.2918]
[1749301372925,5.24584306,105520.0,105510.0,0.2918]
[1749301373134,5.23918682,105520.0,105510.0,0.2918]
[1749301373333,5.22143685,105520.0,105510.0,0.2918]
[1749301373547,5.22809309,105520.0,105510.0,0.2918]
[1749301373772,5.22143685,105520.0,105510.0,0.2918]
[1749301373986,5.24584306,105520.0,105510.0,0.2918]
[1749301374605,5.22143685,105520.0,105510.0,0.2918]
[1749301374807,5.63455876,105520.0,105510.0,0.2918]
[1749301375011,5.62346498,105520.0,105510.0,0.2918]
[1749301375212,5.62346498,105520.0,105510.0,0.001]
[1749301375425,5.64121505,105520.0,105510.0,0.2918]
[1749301376266,5.24584317,105520.0,105510.0,0.2918]
[1749301377313,5.6184941,105520.0,105510.0,0.2918]
[1749301377528,5.64122468,105520.0,105510.0,0.2918]
[1749301377738,5.64122492,105520.0,105510.0,0.2918]
[1749301378314,5.2391972,105520.0,105510.0,0.001]
[1749301378527,5.22144649,105520.0,105510.0,0.2918]
[1749301378823,5.24586782,105520.0,105510.0,0.2918]
[1749301379024,5.22810685,105520.0,105510.0,0.2918]
[1749301379229,5.24586781,105520.0,105510.0,0.2918]
[1749301380105,5.23920745,105520.0,105510.0,0.2918]
[1749301380306,5.22810685,105520.0,105510.0,0.2918]
[1749301380488,5.24586781,105520.0,105510.0,0.2918]
[1749301380708,5.23920745,105520.0,105510.0,0.2918]
[1749301380921,5.22810685,105520.0,105510.0,0.2918]
[1749301381151,5.24586781,105520.0,105510.0,0.2918]
[1749301381347,5.22810685,105520.0,105510.0,0.2918]
[1749301381558,5.22144649,105520.0,105510.0,0.2918]
[1749301381765,5.23920745,105520.0,105510.0,0.2918]
[1749301382402,5.24586781,105520.0,105510.0,0.2918]
[1749301382841,5.62347872,105520.0,105510.0,0.001]
[1749301383051,5.65189212,105520.0,105510.0,0.2918]
[1749301383510,5.66299319,105520.0,105510.0,0.2918]
[1749301383706,5.65193218,105520.0,105510.0,0.2918]
[1749301383915,5.66969379,105520.0,105510.0,0.2918]
[1749301384124,5.66303319,105520.0,105510.0,0.2918]
[1749301384336,5.6696938,105520.0,105510.0,0.001]
[1749301384555,5.70751923,105520.0,105510.0,0.2918]
[1749301384973,5.70085603,105520.0,105510.0,0.2918]
[1749301385216,5.75656772,105520.0,105510.0,0.001]
[1749301385411,5.7281551,105520.0,105510.0,0.2918]
[1749301385614,5.70373606,105520.0,105510.0,0.2918]
[1749301385821,5.72815544,105520.0,105510.0,0.2918]
[1749301386032,5.72815555,105520.0,105510.0,0.2918]
[1749301386268,5.70273606,105520.0,105510.0,0.2908]
[1749301386444,5.70639592,105520.0,105510.0,0.2908]
[1749301386671,5.73015555,105520.0,105510.0,0.2918]
[1749301386891,5.71239592,105520.0,105510.0,0.2918]
[1749301387120,5.73415554,105520.0,105510.0,0.2918]
[1749301387365,5.71639592,105520.0,105510.0,0.2918]
[1749301387571,5.71239592,105520.0,105510.0,0.2918]
[1749301387765,5.73415555,105520.0,105510.0,0.2918]
[1749301388337,1.36172182,105500.0,105490.0,0.10936]
[1749301388534,1.01942868,105500.0,105490.0,0.40016]
[1749301388772,0.99004306,105500.0,105490.0,0.40016]
[1749301389173,1.01444489,105500.0,105490.0,0.40016]
[1749301389733,1.00125825,105500.0,105490.0,0.40016]
[1749301389935,1.02566006,105500.0,105490.0,0.40016]
[1749301390142,1.02566008,105500.0,105490.0,0.40016]
[1749301390352,1.00125825,105500.0,105490.0,0.40016]
[1749301390576,1.01900504,105500.0,105490.0,0.40016]
[1749301390778,1.00791329,105500.0,105490.0,0.40016]
[1749301390956,1.02566008,105500.0,105490.0,0.40016]
[1749301391193,1.02566007,105500.0,105490.0,0.40016]
[1749301391401,0.96965825,105500.0,105490.0,0.40016]
[1749301391574,0.99405895,105500.0,105490.0,0.62481012]
[1749301391791,0.58094111,105500.0,105490.0,0.61533082]
[1749301391940,0.98740387,105500.0,105490.0,0.61533082]
[1749301392137,0.95735596,105500.0,105490.0,0.41626]
[1749301392412,0.97973818,105500.0,105490.0,0.41626]
[1749301392833,0.97185194,105500.0,105490.0,0.615331]
[1749301393107,0.9896076,105500.0,105490.0,0.64996963]
[1749301393274,0.97185467,105500.0,105490.0,0.64996963]
[1749301393653,0.98295026,105500.0,105490.0,0.64996963]
[1749301393838,0.98960759,105500.0,105490.0,0.64111048]
[1749301393982,0.96519733,105500.0,105490.0,0.64111048]
[1749301394180,0.98960759,105500.0,105490.0,0.62481048]
[1749301394386,0.96519733,105500.0,105490.0,0.63366963]
[1749301394592,0.97185467,105500.0,105490.0,0.63366963]
[1749301394793,0.98960759,105500.0,105490.0,0.63366963]
[1749301395000,0.98960759,105500.0,105490.0,0.62481048]
[1749301395236,0.96519733,105500.0,105490.0,0.62481048]
[1749301395439,0.97185467,105500.0,105490.0,0.62481048]
[1749301395641,0.98295026,105500.0,105490.0,0.63366963]
[1749301395845,0.96519733,105500.0,105490.0,0.62481048]
[1749301396045,0.96519733,105500.0,105490.0,0.63366885]
[1749301396316,0.58757762,105500.0,105490.0,0.63366885]
[1749301396536,0.96519733,105500.0,105490.0,0.63366877]
[1749301396936,0.96519733,105500.0,105490.0,0.63366885]
[1749301397139,0.97185453,105500.0,105490.0,0.62481048]
[1749301397582,0.96519733,105500.0,105490.0,0.63366916]
[1749301397786,0.97185453,105500.0,105490.0,0.62481048]
[1749301397992,0.98294988,105500.0,105490.0,0.62481048]
[1749301398238,0.96519733,105500.0,105490.0,0.62481048]
[1749301398455,0.98960708,105500.0,105490.0,0.62481048]
[1749301398660,0.97185453,105500.0,105490.0,0.42511868]
[1749301398868,0.98294682,105500.0,105490.0,0.42511715]
[1749301399291,0.96519733,105500.0,105490.0,0.41626]
[1749301399705,0.96519733,105500.0,105490.0,0.40901714]
[1749301399898,0.98294682,105500.0,105490.0,0.40901714]
[1749301400031,0.96519733,105500.0,105490.0,0.40016]
[1749301400250,0.98294682,105500.0,105490.0,0.42411714]
[1749301400464,0.98294865,105500.0,105490.0,0.42411714]
[1749301400676,0.98294865,105500.0,105490.0,0.42411805]
[1749301400892,0.96519733,105500.0,105490.0,0.41526]
[1749301401102,0.56982546,105500.0,105490.0,0.41526]
[1749301401335,0.58757678,105500.0,105490.0,0.6238103]
[1749301401543,0.58757678,105500.0,105490.0,0.64878933]
[1749301401544,0.0396503,105500.0,105490.0,0.64878933]
[1749301401747,0.05740054,105500.0,105490.0,0.65826827]
[1749301402181,0.04792159,105500.0,105490.0,0.65826827]
[1749301402396,0.02095599,105500.0,105490.0,0.75466775]
[1749301402669,0.0304343,105500.0,105490.0,0.75466775]
[1749301403753,0.01147786,105500.0,105490.0,0.75466775]
[1749301404003,0.002,105500.0,105490.0,0.75466775]
[1749301404453,0.01147786,105500.0,105490.0,0.76403185]
[1749301404659,0.01147786,105500.0,105490.0,0.75466775]
[1749301404866,0.0209559,105500.0,105490.0,0.75466775]
[1749301406756,0.002,105500.0,105490.0,1.15003962]
[1749301407157,0.002,105500.0,105490.0,0.75466775]
[1749301408030,0.001,105500.0,105490.0,0.75466775]
[1749301408252,0.001,105500.0,105490.0,0.76409966]
[1749301408476,0.002,105500.0,105490.0,0.76509966]
[1749301408697,0.001,105500.0,105490.0,0.76509966]
[1749301408911,0.001,105500.0,105490.0,0.76609966]
[1749301417527,0.001,105500.0,105490.0,1.16147153]
[1749301420067,0.001,105500.0,105490.0,1.16047153]
[1749301420316,0.51880776,105520.0,105510.0,0.23308772]
[1749301420516,0.51880776,105520.0,105510.0,0.7250872]
[1749301420517,0.52828418,105520.0,105510.0,0.7250872]
[1749301420907,0.53658985,105520.0,105510.0,0.7250872]
[1749301421313,0.51880776,105520.0,105510.0,0.7250872]
[1749301421752,0.53758968,105520.0,105510.0,0.7260872]
[1749301422160,0.51980776,105520.0,105510.0,0.7260872]
[1749301422367,0.53758968,105520.0,105510.0,0.7260872]
[1749301422570,0.54706601,105520.0,105510.0,0.7260872]
[1749301423474,0.55654252,105520.0,105510.0,0.7104872]
[1749301423676,0.55654253,105520.0,105510.0,0.7104872]
[1749301424315,0.5387606,105520.0,105510.0,0.7104872]
[1749301424512,0.55654253,105520.0,105510.0,0.7104872]
[1749301424665,0.56601922,105520.0,105510.0,0.7104872]
[1749301425051,0.54823729,105520.0,105510.0,0.7104872]
[1749301425793,0.56601922,105520.0,105510.0,0.7104872]
[1749301425993,0.56601924,105520.0,105510.0,0.7104872]
[1749301426200,0.54823801,105520.0,105510.0,0.7104872]
[1749301426427,0.53876123,105520.0,105510.0,0.7104872]
[1749301426635,0.55654316,105520.0,105510.0,0.7104872]
[1749301426881,0.53876123,105520.0,105510.0,0.7104872]
[1749301427092,0.53876123,105520.0,105510.0,0.6953872]
[1749301428941,0.52928454,105520.0,105510.0,0.7107872]
[1749301429741,0.53876123,105520.0,105510.0,0.7107872]
[1749301430066,0.53876123,105520.0,105510.0,0.6953872]
[1749301430965,0.53876123,105520.0,105510.0,0.9412272]
[1749301431925,0.52928454,105520.0,105510.0,0.9412272]
[1749301432121,0.53876123,105520.0,105510.0,0.9412272]
[1749301432591,0.55649536,105520.0,105510.0,0.9412272]
[1749301433181,0.54701867,105520.0,105510.0,0.9412272]
[1749301433581,0.52928454,105520.0,105510.0,0.9412272]
[1749301434007,0.54701867,105520.0,105510.0,0.9412272]
[1749301434207,0.55649536,105520.0,105510.0,0.9412272]
[1749301434438,0.53876123,105520.0,105510.0,0.9412272]
[1749301434651,0.56201867,105520.0,105510.0,0.9412272]
[1749301434857,0.57149536,105520.0,105510.0,0.9412272]
[1749301435056,0.56201867,105520.0,105510.0,0.9412272]
[1749301435235,0.54428454,105520.0,105510.0,0.9412272]
[1749301435433,1.27310262,105520.0,105510.0,0.35271725]
[1749301435635,1.30604874,105520.0,105510.0,0.25631777]
[1749301435853,1.27882629,105520.0,105510.0,0.275322]
[1749301436012,1.2965733,105520.0,105510.0,0.655202]
[1749301436204,1.29657342,105520.0,105510.0,0.275322]
[1749301436405,1.29657374,105520.0,105510.0,0.655202]
[1749301436619,1.3032299,105520.0,105510.0,0.655202]
[1749301437007,1.3032299,105520.0,105510.0,0.62672]
[1749301437180,1.30323002,105520.0,105510.0,0.62672]
[1749301437413,1.30323002,105520.0,105510.0,0.62676]
[1749301437618,1.29657446,105520.0,105510.0,0.62676]
[1749301438015,0.80493002,105520.0,105510.0,0.62676]
[1749301438220,0.80345456,105520.0,105510.0,0.24684]
[1749301438376,0.80345459,105520.0,105510.0,0.24684]
[1749301438588,0.80345459,105520.0,105510.0,0.62676]
[1749301439117,0.79679902,105520.0,105510.0,0.24684]
[1749301439272,0.77905083,105520.0,105510.0,0.62676]
[1749301439471,0.79679474,105520.0,105510.0,0.62676]
[1749301440111,0.77905083,105520.0,105510.0,0.62676]
[1749301440968,0.78570484,105520.0,105510.0,0.62676]
[1749301441125,0.79679489,105520.0,105510.0,0.62676]
[1749301441330,0.80344891,105520.0,105510.0,0.62676]
[1749301441938,0.79679489,105520.0,105510.0,0.62676]
[1749301442149,0.80344891,105520.0,105510.0,0.62676]
[1749301442561,0.77905083,105520.0,105510.0,0.62676]
[1749301442735,0.79679489,105520.0,105510.0,0.62676]
[1749301443119,0.80344891,105520.0,105510.0,0.62676]
[1749301443953,0.78570485,105520.0,105510.0,0.62676]
[1749301444400,0.80344891,105520.0,105510.0,0.62676]
[1749301444781,0.80344889,105520.0,105510.0,0.62676]
[1749301444952,0.78570484,105520.0,105510.0,0.62676]
[1749301445423,0.79679488,105520.0,105510.0,0.38092]
[1749301445563,0.80344889,105520.0,105510.0,0.38092]
[1749301445771,0.80344889,105520.0,105510.0,0.39039777]
[1749301446028,0.77905083,105520.0,105510.0,0.39039777]
[1749301446606,0.80344889,105520.0,105510.0,0.39039777]
[1749301447226,1.33632338,105520.0,105510.0,0.39039777]
[1749301447452,1.32523334,105520.0,105510.0,0.39039777]
[1749301447669,1.31857933,105520.0,105510.0,0.57995326]
[1749301447883,1.32523334,105520.0,105510.0,0.58943094]
[1749301448542,1.31857933,105520.0,105510.0,0.38092]
[1749301448755,1.34297739,105520.0,105510.0,0.39039777]
[1749301448975,1.34297739,105520.0,105510.0,0.38092]
[1749301449192,1.31575683,105520.0,105510.0,0.39039777]
[1749301449421,1.33350088,105520.0,105510.0,0.39039777]
[1749301449668,1.33350088,105520.0,105510.0,0.38092]
[1749301449882,1.3335009,105520.0,105510.0,0.38092]
[1749301450097,1.30910282,105520.0,105510.0,0.38092]
[1749301450321,1.3335009,105520.0,105510.0,0.38092]
[1749301450532,1.30910282,105520.0,105510.0,0.38092]
[1749301450744,1.31575684,105520.0,105510.0,0.38092]
[1749301450957,1.30910282,105520.0,105510.0,0.38092]
[1749301451176,1.31575684,105520.0,105510.0,0.38092]
[1749301451391,1.3335009,105520.0,105510.0,0.38092]
[1749301451633,1.31575684,105520.0,105510.0,0.38092]
[1749301451845,1.30910282,105520.0,105510.0,0.38092]
[1749301452052,1.31575684,105520.0,105510.0,0.38092]
[1749301452289,1.3335009,105520.0,105510.0,0.38092]
[1749301452504,1.31575684,105520.0,105510.0,0.38092]
[1749301452722,1.30910282,105520.0,105510.0,0.38092]
[1749301452940,1.3335009,105520.0,105510.0,0.38092]
[1749301453169,1.32684688,105520.0,105510.0,0.38092]
[1749301453393,1.30910282,105520.0,105510.0,0.38092]
[1749301453641,1.31575684,105520.0,105510.0,0.38092]
[1749301453861,1.3335009,105520.0,105510.0,0.38092]
[1749301454291,1.33349829,105520.0,105510.0,0.38092]
[1749301454510,1.32684498,105520.0,105510.0,0.38092]
[1749301454723,1.33349829,105520.0,105510.0,0.38092]
[1749301455184,1.32684498,105520.0,105510.0,0.38092]
[1749301455877,1.33349829,105520.0,105510.0,0.38092]
[1749301456140,1.30910282,105520.0,105510.0,0.38092]
[1749301456355,1.32684498,105520.0,105510.0,0.38092]
[1749301456761,1.33349829,105520.0,105510.0,0.38092]
[1749301457196,1.30910282,105520.0,105510.0,0.38092]
[1749301457465,1.32684892,105520.0,105510.0,0.38092]
[1749301458091,1.33350371,105520.0,105510.0,0.38092]
[1749301458338,1.32684839,105520.0,105510.0,0.38092]
[1749301458788,1.30910282,105520.0,105510.0,0.38092]
[1749301459004,1.32684822,105520.0,105510.0,0.38092]
[1749301459460,1.30910282,105520.0,105510.0,0.38092]
[1749301459676,1.32684858,105520.0,105510.0,0.38092]
[1749301460124,1.30910282,105520.0,105510.0,0.38092]
[1749301461835,1.32364367,105520.0,105510.0,0.38084]
[1749301462484,1.34804575,105520.0,105510.0,0.38084]
[1749301462699,1.35303777,105520.0,105510.0,0.38084]
[1749301463343,1.37078475,105520.0,105510.0,0.38084]
[1749301463544,1.36412964,105520.0,105510.0,0.38084]
[1749301463999,1.91018902,105520.0,105510.0,0.001]
[1749301464205,1.44943726,105520.0,105510.0,0.0902]
[1749301464413,1.44943726,105520.0,105510.0,0.38076]
[1749301464613,1.44278214,105520.0,105510.0,0.38076]
[1749301464813,1.4778433,105520.0,105510.0,0.38076]
[1749301465267,1.44945047,105520.0,105510.0,0.38076]
[1749301465470,1.46056447,105520.0,105510.0,0.38076]
[1749301465676,2.02836156,105520.0,105510.0,0.29156]
[1749301465882,2.01724767,105520.0,105510.0,0.29156]
[1749301466089,2.03503019,105520.0,105510.0,0.29156]
[1749301466293,2.01724768,105520.0,105510.0,0.29156]
[1749301466497,2.03503022,105520.0,105510.0,0.29156]
[1749301467105,2.03497511,105520.0,105510.0,0.29156]
[1749301467247,2.0283217,105520.0,105510.0,0.29156]
[1749301467448,2.03497512,105520.0,105510.0,0.29156]
[1749301467686,6.12473194,105520.0,105510.0,0.001]
[1749301467883,6.1420357,105520.0,105510.0,0.29156]
[1749301468068,6.15977829,105520.0,105510.0,0.29156]
[1749301468952,6.15976802,105520.0,105510.0,0.29156]
[1749301469164,6.1420329,105520.0,105510.0,0.29156]
[1749301469380,6.15976802,105520.0,105510.0,0.29156]
[1749301469600,6.13137519,105520.0,105510.0,0.29156]
[1749301469817,6.11363993,105520.0,105510.0,0.29156]
[1749301470030,6.13138332,105520.0,105510.0,0.29156]
[1749301470725,6.1313865,105520.0,105510.0,0.29156]
[1749301470955,6.1069894,105520.0,105510.0,0.29156]
[1749301471174,6.124733,105520.0,105510.0,0.29156]
[1749301471453,6.13138688,105520.0,105510.0,0.29156]
[1749301471667,6.11364326,105520.0,105510.0,0.29156]
[1749301471880,6.13138688,105520.0,105510.0,0.29156]
[1749301472518,2.12014542,105520.0,105510.0,0.001]
[1749301472730,6.5497889,105520.0,105510.0,0.001]
[1749301472976,6.58761435,105520.0,105510.0,0.001]
[1749301473193,6.58095849,105520.0,105510.0,0.001]
[1749301473529,0.23093308,105510.0,105500.0,0.29056]
[1749301473708,5.54869512,105510.0,105500.0,0.29056]
[1749301473932,5.57809075,105510.0,105500.0,0.29056]
[1749301474134,5.57809075,105510.0,105490.0,0.26588]
[1749301474340,1.66430131,105500.0,105490.0,0.35512]
[1749301474553,1.68205235,105500.0,105490.0,0.64568]
[1749301474755,1.68869758,105500.0,105490.0,0.64568]
[1749301474955,1.68204406,105500.0,105490.0,0.64568]
[1749301475173,1.68869759,105500.0,105490.0,0.64568]
[1749301476022,1.68869738,105500.0,105490.0,0.64568]
[1749301476248,1.68869717,105500.0,105490.0,0.64568]
[1749301476405,1.67195462,105500.0,105490.0,0.3998]
[1749301476628,1.6850437,105500.0,105490.0,0.3998]
[1749301476805,1.6916974,105500.0,105490.0,0.3998]
[1749301477180,1.69169738,105500.0,105490.0,0.3998]
[1749301477385,1.69169596,105500.0,105490.0,0.3998]
[1749301477789,1.69169543,105500.0,105490.0,0.3998]
[1749301478195,1.69169557,105500.0,105490.0,0.3998]
[1749301478435,1.67395429,105500.0,105490.0,0.3998]
[1749301478740,1.7204022,105500.0,105490.0,0.3998]
[1749301478878,1.71374921,105500.0,105490.0,0.3998]
[1749301479111,1.7026609,105500.0,105490.0,0.3998]
[1749301479336,1.7204022,105500.0,105490.0,0.3998]
[1749301479745,1.69600791,105500.0,105490.0,0.3998]
[1749301480151,1.7204022,105500.0,105490.0,0.3998]
[1749301480529,1.69600791,105500.0,105490.0,0.3998]
[1749301480733,1.7026609,105500.0,105490.0,0.3998]
[1749301481095,1.71374921,105500.0,105490.0,0.3998]
[1749301481234,1.7026609,105500.0,105490.0,0.3998]
[1749301481578,1.7204022,105500.0,105490.0,0.3998]
[1749301481812,1.7026609,105500.0,105490.0,0.10924]
[1749301482061,1.7204022,105500.0,105490.0,0.3998]
[1749301483182,1.72040221,105500.0,105490.0,0.3998]
[1749301483660,1.6869609,105500.0,105490.0,0.3998]
[1749301483900,1.70470221,105500.0,105490.0,0.3998]
[1749301484176,1.71304922,105500.0,105490.0,0.3998]
[1749301484382,1.71972752,105500.0,105490.0,0.3998]
[1749301484681,1.7019678,105500.0,105490.0,0.3998]
[1749301484907,1.71306663,105500.0,105490.0,0.3998]
[1749301485116,1.71972611,105500.0,105490.0,0.3998]
[1749301485331,1.71972607,105500.0,105490.0,0.3998]
[1749301485557,1.7197261,105500.0,105490.0,0.3998]
[1749301486017,1.70196741,105500.0,105490.0,0.3998]
[1749301486461,1.71972606,105500.0,105490.0,0.3998]
[1749301486712,1.69530791,105500.0,105490.0,0.3998]
[1749301486924,1.71972593,105500.0,105490.0,0.3998]
[1749301487139,1.71306661,105500.0,105490.0,0.3998]
[1749301487346,1.71972612,105500.0,105490.0,0.3998]
[1749301488418,1.70196742,105500.0,105490.0,0.3998]
[1749301488629,1.71306661,105500.0,105490.0,0.3998]
[1749301488842,1.70196742,105500.0,105490.0,0.3998]
[1749301489046,1.69530791,105500.0,105490.0,0.3998]
[1749301489480,1.70196743,105500.0,105490.0,0.3998]
[1749301489688,1.71972615,105500.0,105490.0,0.3998]
[1749301489900,1.70196747,105500.0,105490.0,0.3998]
[1749301490106,1.71306679,105500.0,105490.0,0.3998]
[1749301490330,1.71972637,105500.0,105490.0,0.3998]
[1749301490590,1.69530791,105500.0,105490.0,0.3998]
[1749301490810,1.74244332,105500.0,105490.0,0.3998]
[1749301491018,1.73578374,105500.0,105490.0,0.3998]
[1749301491435,1.73578375,105500.0,105490.0,0.3998]
[1749301491876,1.71802486,105500.0,105490.0,0.3998]
[1749301492298,1.74244303,105500.0,105490.0,0.3998]
[1749301492506,1.72468436,105500.0,105490.0,0.3998]
[1749301492685,1.74244303,105500.0,105490.0,0.3998]
[1749301493134,1.72468436,105500.0,105490.0,0.3998]
[1749301493349,1.74244303,105500.0,105490.0,0.3998]
[1749301493776,1.74244303,105500.0,105490.0,0.39032]
[1749301493978,1.74244271,105500.0,105490.0,0.39032]
[1749301494188,1.73578323,105500.0,105490.0,0.39032]
[1749301494442,1.74244262,105500.0,105490.0,0.39032]
[1749301494647,1.70472524,105500.0,105490.0,0.39032]
[1749301495273,1.68852494,105500.0,105490.0,0.39032]
[1749301495730,1.670767,105500.0,105490.0,0.39032]
[1749301495963,1.68186759,105500.0,105490.0,0.39032]
[1749301496168,1.68626779,105500.0,105490.0,0.39032]
[1749301496381,1.70402747,105500.0,105490.0,0.39032]
[1749301496603,1.69800587,105500.0,105490.0,0.58939091]
[1749301496815,1.69800546,105500.0,105490.0,0.40672]
[1749301497285,1.69800834,105500.0,105490.0,0.40672]
[1749301497708,1.68024686,105500.0,105490.0,0.40672]
[1749301497928,1.68024687,105500.0,105490.0,0.40672]
[1749301498144,1.67358631,105500.0,105490.0,0.40672]
[1749301498363,1.6980084,105500.0,105490.0,0.40672]
[1749301498866,1.69800907,105500.0,105490.0,0.40672]
[1749301499071,1.68346822,105500.0,105490.0,0.59631143]
[1749301499276,1.68346965,105500.0,105490.0,0.605791]
[1749301499484,0.03690185,105500.0,105490.0,0.621191]
[1749301499725,0.03971766,105500.0,105490.0,0.64962863]
[1749301499915,0.03972037,105500.0,105490.0,0.64962863]
[1749301500122,0.01247795,105500.0,105490.0,0.64962863]
[1749301500327,0.02076434,105500.0,105490.0,0.64962863]
[1749301500752,0.02076434,105500.0,105490.0,1.28543237]
[1749301500966,0.003,105500.0,105490.0,0.74602811]
[1749301501391,0.01247786,105500.0,105490.0,0.74602811]
[1749301501820,0.002,105500.0,105490.0,0.74602811]
[1749301502029,0.01147795,105500.0,105490.0,0.74702811]
[1749301502211,0.00947795,105500.0,105490.0,0.74702811]
[1749301502674,0.01047795,105500.0,105490.0,0.74802811]
[1749301504569,0.0294343,105500.0,105490.0,0.74802811]
[1749301505710,0.02943421,105500.0,105490.0,0.74802811]
[1749301505936,0.03891261,105500.0,105490.0,0.74802811]
[1749301507336,0.03891252,105500.0,105490.0,0.74802811]
[1749301508661,0.22848597,105500.0,105490.0,0.73854917]
[1749301508879,0.22852651,105500.0,105490.0,0.74802829]
[1749301509079,0.03895306,105500.0,105490.0,0.75750732]
[1749301509296,0.03895306,105500.0,105490.0,1.00338669]
[1749301509508,0.76547398,105500.0,105490.0,0.34756]
[1749301509788,0.79909844,105500.0,105490.0,0.34756]
[1749301510000,0.79909844,105500.0,105490.0,0.63804]
[1749301510210,0.79910383,105500.0,105490.0,0.63804]
[1749301510421,0.78137398,105500.0,105490.0,0.63804]
[1749301510636,0.79910392,105500.0,105490.0,0.63804]
[1749301510853,0.79910402,105500.0,105490.0,0.63804]
[1749301511863,0.78137398,105500.0,105490.0,0.63804]
[1749301512090,0.79910692,105500.0,105490.0,0.63804]
[1749301512605,0.79910694,105500.0,105490.0,0.63804]
[1749301512831,0.79910694,105500.0,105490.0,0.2584]
[1749301513039,0.79910694,105500.0,105490.0,0.63804]
[1749301513040,1.13910694,105500.0,105490.0,0.63804]
[1749301513253,1.13910751,105500.0,105490.0,0.63804]
[1749301513467,1.13910751,105500.0,105490.0,0.34756]
[1749301513468,1.15364845,105500.0,105490.0,0.34756]
[1749301513680,1.15364896,105500.0,105490.0,0.63804]
[1749301513890,1.13591483,105500.0,105490.0,0.63804]
[1749301514096,1.14256518,105500.0,105490.0,0.63804]
[1749301514301,1.16029937,105500.0,105490.0,0.63804]
[1749301514508,1.16029938,105500.0,105490.0,0.63804]
[1749301514709,1.16029938,105500.0,105490.0,0.34756]
[1749301514912,1.16030156,105500.0,105490.0,0.63804]
[1749301515117,1.16030238,105500.0,105490.0,0.63804]
[1749301515319,1.16030304,105500.0,105490.0,0.63804]
[1749301515531,1.15365178,105500.0,105490.0,0.63804]
[1749301515733,1.1603033,105500.0,105490.0,0.63804]
[1749301515937,1.1603033,105500.0,105490.0,0.39216]
[1749301516356,1.16030244,105500.0,105490.0,0.39216]
[1749301516560,1.16030244,105500.0,105490.0,0.10168]
[1749301516762,1.16030244,105500.0,105490.0,0.39216]
[1749301517074,1.1536496,105500.0,105490.0,0.39216]
[1749301517321,1.14256537,105500.0,105490.0,0.39216]
[1749301517535,1.16030014,105500.0,105490.0,0.39216]
[1749301518236,1.16030014,105500.0,105490.0,0.01252]
[1749301518451,1.16029917,105500.0,105490.0,0.01252]
[1749301518658,1.1602988,105500.0,105490.0,0.3922]
[1749301519088,1.13591483,105500.0,105490.0,0.3922]
[1749301519303,1.15364863,105500.0,105490.0,0.01252]
[1749301519518,1.1602988,105500.0,105490.0,0.3922]
[1749301519731,0.62089507,105500.0,105490.0,0.01252]
[1749301519981,1.1602988,105500.0,105490.0,0.3922]
[1749301520392,1.16029855,105500.0,105490.0,0.01252]
[1749301520604,1.14256491,105500.0,105490.0,0.3922]
[1749301520812,1.16029858,105500.0,105490.0,0.3922]
[1749301521028,1.14256494,105500.0,105490.0,0.3922]
[1749301521261,1.15364847,105500.0,105490.0,0.3922]
[1749301521465,1.16029862,105500.0,105490.0,0.3922]
[1749301521671,5.28510162,105500.0,105490.0,0.3922]
[1749301522105,5.28510181,105500.0,105490.0,0.3922]
[1749301522362,5.28510261,105500.0,105490.0,0.3922]
[1749301522583,5.26736822,105500.0,105490.0,0.3922]
[1749301522794,5.26071783,105500.0,105490.0,0.3922]
[1749301523004,5.27845222,105500.0,105490.0,0.3922]
[1749301523209,5.26736822,105500.0,105490.0,0.3922]
[1749301523455,5.28510261,105500.0,105490.0,0.3922]
[1749301524367,5.26736822,105500.0,105490.0,0.3922]
[1749301524587,5.28510262,105500.0,105490.0,0.10172]
[1749301524809,5.28342114,105500.0,105490.0,0.3922]
[1749301525274,5.30780628,105500.0,105490.0,0.3922]
[1749301525484,5.30780492,105500.0,105490.0,0.3922]
[1749301525684,5.30115443,105500.0,105490.0,0.3922]
[1749301525907,5.28342114,105500.0,105490.0,0.3922]
[1749301526124,5.2784511,105500.0,105490.0,0.3922]
[1749301526350,5.26736778,105500.0,105490.0,0.3922]
[1749301526554,5.31294826,105500.0,105490.0,0.3922]
[1749301526980,5.31294747,105500.0,105490.0,0.3922]
[1749301527185,5.30629621,105500.0,105490.0,0.3922]
[1749301527393,5.31294536,105500.0,105490.0,0.3922]
[1749301527608,5.28856514,105500.0,105490.0,0.3922]
[1749301528025,5.30629621,105500.0,105490.0,0.3922]
[1749301528235,5.40269569,105500.0,105490.0,0.10172]
[1749301528446,5.43204161,105500.0,105490.0,0.3922]
[1749301529100,5.40766366,105500.0,105490.0,0.3922]
[1749301529311,5.43204224,105500.0,105490.0,0.3922]
[1749301529733,5.40766366,105500.0,105490.0,0.3922]
[1749301529938,5.39161332,105500.0,105490.0,0.3922]
[1749301530180,5.43203967,105500.0,105490.0,0.3922]
[1749301530607,6.00922786,105500.0,105490.0,0.303]
[1749301530821,6.03759829,105500.0,105490.0,0.303]
[1749301531038,5.98484915,105500.0,105490.0,0.303]
[1749301531242,6.00257278,105500.0,105490.0,0.303]
[1749301531492,6.00821883,105500.0,105490.0,0.301]
[1749301531699,6.00457253,105500.0,105490.0,0.301]
[1749301531922,5.97543433,105500.0,105490.0,0.301]
[1749301532556,5.4360306,105500.0,105490.0,0.301]
[1749301532802,5.97543963,105500.0,105490.0,0.301]
[1749301533009,5.95106469,105500.0,105490.0,0.301]
[1749301533215,5.97543963,105500.0,105490.0,0.301]
[1749301533647,1.85063663,105500.0,105490.0,0.29151263]
[1749301533887,6.00381006,105500.0,105490.0,0.29151263]
[1749301534154,0.23931056,105480.0,105470.0,0.08916]
[1749301534377,1.31811802,105480.0,105470.0,0.08916]
[1749301534589,0.19910856,105470.0,105460.0,0.26092]
[1749301534797,0.73851229,105470.0,105460.0,0.35008]
[1749301535004,0.76557287,105470.0,105460.0,0.35008]
[1749301535222,0.76557286,105470.0,105460.0,0.35008]
[1749301535480,0.76557286,105470.0,105460.0,0.64060779]
[1749301535902,0.76556783,105470.0,105460.0,0.64060779]
[1749301536973,0.2261641,105470.0,105460.0,0.65009005]
[1749301537177,0.74884065,105470.0,105460.0,0.65009005]
[1749301537382,0.76660783,105470.0,105460.0,0.66849005]
[1749301538222,0.76661731,105470.0,105460.0,0.66849005]